bitfinex/quotes_BTCUSD_20240915
["timestamp","ask_amount","ask_price","bid_price","bid_amount"]
[1726368391768,0.10004644,60355.0,60354.0,0.38223857]
[1726368391989,0.10004644,60355.0,60354.0,0.36842785]
[1726368392212,0.10004644,60355.0,60354.0,0.34540952]
[1726368393551,0.10004644,60355.0,60354.0,0.53105453]
[1726368393771,0.10004644,60355.0,60354.0,0.59253871]
[1726368394703,0.10004644,60355.0,60354.0,0.53105453]
[1726368395192,0.10004644,60355.0,60354.0,0.48728466]
[1726368395434,0.10004644,60355.0,60354.0,0.50803561]
[1726368395674,0.10004644,60355.0,60354.0,0.5310358]
[1726368395902,0.12604307,60355.0,60354.0,0.5310358]
[1726368397061,0.10004644,60355.0,60354.0,0.5310358]
[1726368399199,0.10004644,60355.0,60354.0,0.53106595]
[1726368402825,0.10004644,60355.0,60354.0,0.50806576]
[1726368403067,0.10004644,60355.0,60354.0,0.48731481]
[1726368403309,0.10004644,60355.0,60354.0,0.53107869]
[1726368403970,0.10004644,60355.0,60354.0,0.53107494]
[1726368405779,0.10004644,60355.0,60354.0,0.34540882]
[1726368407614,0.10004644,60355.0,60354.0,0.47795982]
[1726368408259,0.10004644,60355.0,60354.0,0.34540882]
[1726368408474,0.10004644,60355.0,60354.0,0.19606832]
[1726368411369,0.12604307,60355.0,60354.0,0.19606832]
[1726368413629,0.12604307,60355.0,60354.0,0.32237689]
[1726368413853,0.12604307,60355.0,60354.0,0.19609196]
[1726368414075,0.12604307,60355.0,60354.0,0.17305607]
[1726368414319,0.12604307,60355.0,60354.0,0.1753351]
[1726368414534,0.12604307,60355.0,60354.0,0.34540746]
[1726368415618,0.12604307,60355.0,60354.0,0.19608622]
[1726368416792,0.10004644,60355.0,60354.0,0.19608622]
[1726368417251,0.10004644,60355.0,60354.0,0.19608643]
[1726368420666,0.10004644,60355.0,60354.0,0.17305577]
[1726368420915,0.10004644,60355.0,60354.0,0.17530979]
[1726368421143,0.12604323,60355.0,60354.0,0.19606142]
[1726368422947,0.10004644,60355.0,60354.0,0.19606142]
[1726368423606,0.10004644,60355.0,60354.0,0.17530979]
[1726368425860,0.12604323,60355.0,60354.0,0.17530979]
[1726368427175,0.10004644,60355.0,60354.0,0.17530979]
[1726368429419,0.23259544,60355.0,60354.0,0.17530979]
[1726368429652,0.10004644,60355.0,60354.0,0.17530979]
[1726368430088,0.10004644,60355.0,60354.0,0.17530853]
[1726368430774,0.12604323,60355.0,60354.0,0.17530853]
[1726368432895,0.10004644,60355.0,60354.0,0.17530853]
[1726368433341,0.10004644,60355.0,60354.0,0.15230444]
[1726368433565,0.10004644,60355.0,60354.0,0.38611504]
[1726368433786,0.10004644,60355.0,60354.0,0.15230444]
[1726368433998,0.10004644,60355.0,60354.0,0.30162624]
[1726368434248,0.10004644,60355.0,60354.0,0.32462512]
[1726368434751,0.10004644,60355.0,60354.0,0.17530332]
[1726368435890,0.12604323,60355.0,60354.0,0.17530332]
[1726368436355,0.10004644,60355.0,60354.0,0.17530332]
[1726368436815,0.10004644,60355.0,60354.0,0.15230444]
[1726368437090,0.10004644,60355.0,60354.0,0.17529429]
[1726368438601,0.23259544,60355.0,60354.0,0.17529429]
[1726368438813,0.10004644,60355.0,60354.0,0.17529429]
[1726368439464,0.25859223,60355.0,60354.0,0.17529429]
[1726368439695,0.12604323,60355.0,60354.0,0.17529429]
[1726368443658,0.10004644,60355.0,60354.0,0.17530317]
[1726368444548,0.10004644,60355.0,60354.0,0.17530362]
[1726368446977,0.10004644,60355.0,60354.0,0.17530829]
[1726368447928,0.49769344,60355.0,60354.0,0.17530829]
[1726368451564,0.52369026,60355.0,60354.0,0.17530829]
[1726368452006,0.25859226,60355.0,60354.0,0.17530829]
[1726368452786,0.23259544,60355.0,60354.0,0.17530829]
[1726368453616,0.23259544,60355.0,60354.0,0.15230444]
[1726368453829,0.23259544,60355.0,60354.0,0.51042722]
[1726368454043,0.23259544,60355.0,60354.0,0.17531803]
[1726368454259,0.23259544,60355.0,60354.0,0.51042722]
[1726368454472,0.23259544,60355.0,60354.0,0.17531803]
[1726368454682,0.23259544,60355.0,60354.0,0.51042722]
[1726368454900,0.23259544,60355.0,60354.0,0.32467389]
[1726368455110,0.23259544,60355.0,60354.0,0.65978308]
[1726368455348,0.23259544,60355.0,60354.0,0.32467622]
[1726368455993,0.25859226,60355.0,60354.0,0.32467148]
[1726368456934,0.25859226,60355.0,60354.0,0.17531329]
[1726368457132,0.25859226,60355.0,60354.0,0.15230444]
[1726368457356,0.25859226,60355.0,60354.0,0.17531149]
[1726368458922,0.12604326,60355.0,60354.0,0.17531149]
[1726368460494,0.25859226,60355.0,60354.0,0.17531149]
[1726368460720,0.25859226,60355.0,60354.0,0.17540715]
[1726368462261,0.12604326,60355.0,60354.0,0.17540715]
[1726368462515,0.10004644,60355.0,60354.0,0.17540715]
[1726368463688,0.00124644,60355.0,60354.0,0.17540715]
[1726368463920,0.00124644,60355.0,60354.0,0.15230444]
[1726368464181,0.00124644,60355.0,60354.0,0.17550237]
[1726368464614,0.00124644,60355.0,60354.0,0.30805337]
[1726368465484,0.02724311,60355.0,60354.0,0.30805337]
[1726368469689,0.02724311,60355.0,60354.0,0.85435943]
[1726368469908,0.02724311,60355.0,60354.0,0.45741763]
[1726368470128,0.02724311,60355.0,60354.0,0.6435077]
[1726368470349,0.02724311,60355.0,60354.0,0.45741445]
[1726368470799,0.02724311,60355.0,60354.0,0.45739452]
[1726368472904,0.00124644,60355.0,60354.0,0.45739452]
[1726368473567,0.00124644,60355.0,60354.0,0.70497425]
[1726368473771,0.00124644,60355.0,60354.0,0.70497492]
[1726368473989,0.00124644,60355.0,60354.0,0.30803344]
[1726368474211,0.00124644,60355.0,60354.0,0.64306037]
[1726368474446,0.00124644,60355.0,60354.0,0.30803344]
[1726368474657,0.00124644,60355.0,60354.0,0.64304102]
[1726368474876,0.00124644,60355.0,60354.0,0.45737133]
[1726368475082,0.00124644,60355.0,60354.0,0.79239826]
[1726368475294,0.00124644,60355.0,60354.0,0.45737133]
[1726368475505,0.00124644,60355.0,60354.0,0.79239826]
[1726368475735,0.00124644,60355.0,60354.0,0.30801409]
[1726368475955,0.02724308,60355.0,60354.0,0.30801409]
[1726368477019,0.00124644,60355.0,60354.0,0.30801409]
[1726368477239,0.00124644,60355.0,60354.0,0.17547928]
[1726368477465,0.10064644,60355.0,60354.0,0.17547928]
[1726368480407,0.12664319,60355.0,60354.0,0.17547928]
[1726368480617,0.12664319,60355.0,60354.0,0.15230444]
[1726368480810,0.12664319,60355.0,60354.0,0.17548523]
[1726368482816,0.10064644,60355.0,60354.0,0.17548523]
[1726368484651,0.10064644,60355.0,60354.0,0.17549214]
[1726368485913,0.12664282,60355.0,60354.0,0.17549214]
[1726368486791,0.12664282,60355.0,60354.0,0.17550087]
[1726368488119,0.10064644,60355.0,60354.0,0.17550087]
[1726368490197,0.10064644,60355.0,60354.0,0.15230444]
[1726368490405,0.10064644,60355.0,60354.0,0.17549008]
[1726368493509,0.10064644,60355.0,60354.0,0.2137884]
[1726368493680,0.10064644,60355.0,60354.0,0.17547272]
[1726368494486,0.00124644,60355.0,60354.0,0.17547272]
[1726368495363,0.02724304,60355.0,60354.0,0.17547272]
[1726368495546,0.00124644,60355.0,60354.0,0.17547272]
[1726368498651,0.00124644,60355.0,60354.0,0.32481578]
[1726368499118,0.00124644,60355.0,60354.0,0.32480048]
[1726368499347,0.00124644,60355.0,60354.0,0.45735148]
[1726368500007,0.02724304,60355.0,60354.0,0.45735148]
[1726368500901,0.02724304,60355.0,60354.0,0.45735439]
[1726368501398,0.02724304,60355.0,60354.0,0.30800842]
[1726368501854,0.02724304,60355.0,60354.0,0.30900842]
[1726368502942,0.02724304,60355.0,60354.0,0.30800842]
[1726368503568,0.00124644,60355.0,60354.0,0.30800842]
[1726368504066,0.00124644,60355.0,60354.0,0.45735439]
[1726368504520,0.00124644,60355.0,60354.0,0.45736988]
[1726368505025,0.00124644,60355.0,60354.0,0.45736965]
[1726368505931,0.00124644,60355.0,60354.0,0.45736979]
[1726368506607,0.00124644,60355.0,60354.0,0.30802368]
[1726368507034,0.02724299,60355.0,60354.0,0.45736979]
[1726368507496,0.02724299,60355.0,60354.0,0.43520155]
[1726368507709,0.02724299,60355.0,60354.0,0.45838906]
[1726368507854,0.02724299,60355.0,60354.0,0.30904295]
[1726368508084,0.00124644,60355.0,60354.0,0.30904295]
[1726368508681,0.00124644,60355.0,60354.0,1.68125243]
[1726368509734,0.00124644,60355.0,60354.0,1.69318562]
[1726368509940,0.00124644,60355.0,60354.0,1.64993885]
[1726368510146,0.00124644,60355.0,60354.0,1.66393885]
[1726368510557,0.00124644,60355.0,60354.0,1.64993885]
[1726368510770,0.00124644,60355.0,60354.0,1.66393885]
[1726368510973,0.00124644,60355.0,60354.0,1.67793885]
[1726368511173,0.00124644,60355.0,60354.0,1.66393885]
[1726368511833,0.00124644,60355.0,60354.0,1.63559741]
[1726368512043,0.00124644,60355.0,60354.0,1.66672418]
[1726368512266,0.00124644,60355.0,60354.0,2.36672418]
[1726368512465,0.00124644,60355.0,60354.0,2.2888455]
[1726368512670,0.00124644,60355.0,60354.0,2.62385114]
[1726368512877,0.00124644,60355.0,60354.0,2.1917455]
[1726368513129,0.00124644,60355.0,60354.0,1.97059481]
[1726368513367,0.00124644,60355.0,60354.0,1.98559481]
[1726368513782,0.00124644,60355.0,60354.0,1.70549281]
[1726368514033,0.00124644,60355.0,60354.0,1.54103228]
[1726368514264,0.00124644,60355.0,60354.0,1.51784477]
[1726368514476,0.00124644,60355.0,60354.0,1.57804437]
[1726368514694,0.00124644,60355.0,60354.0,1.54099846]
[1726368514900,0.00124644,60355.0,60354.0,1.54100309]
[1726368515328,0.00124644,60355.0,60354.0,0.84100309]
[1726368515536,0.00124644,60355.0,60354.0,0.57590109]
[1726368515932,0.02724086,60355.0,60354.0,0.72499279]
[1726368516894,0.02724086,60355.0,60354.0,0.71099279]
[1726368517105,0.00124644,60355.0,60354.0,0.72499279]
[1726368517319,0.00124644,60355.0,60354.0,0.71099279]
[1726368517766,0.00124644,60355.0,60354.0,0.54790109]
[1726368517989,0.00124644,60355.0,60354.0,0.56190109]
[1726368518218,0.00124644,60355.0,60354.0,0.72502654]
[1726368518421,0.00124644,60355.0,60354.0,0.71102654]
[1726368518640,0.00124644,60355.0,60354.0,0.44592454]
[1726368518858,0.00124644,60355.0,60354.0,0.31083284]
[1726368519692,0.00124644,60355.0,60354.0,0.57593484]
[1726368521184,0.00124644,60355.0,60354.0,0.57593767]
[1726368522251,0.00124644,60355.0,60354.0,0.31083567]
[1726368524185,0.00124644,60355.0,60354.0,0.17828467]
[1726368525095,0.00124644,60355.0,60354.0,0.15508977]
[1726368525323,0.00124644,60355.0,60354.0,0.17827598]
[1726368525994,0.02724156,60355.0,60354.0,0.17827598]
[1726368531543,0.02724156,60355.0,60354.0,0.17825612]
[1726368531781,0.02724156,60355.0,60354.0,0.31080712]
[1726368533410,0.02724156,60355.0,60354.0,0.34787329]
[1726368533650,0.02724156,60355.0,60354.0,0.49699402]
[1726368533868,0.02724156,60355.0,60354.0,0.49704755]
[1726368534316,0.02724156,60355.0,60354.0,0.49705064]
[1726368534552,0.02724156,60355.0,60354.0,0.34792682]
[1726368534784,0.02724156,60355.0,60354.0,0.49705064]
[1726368535240,0.02724156,60355.0,60354.0,0.34791823]
[1726368535485,0.02724156,60355.0,60354.0,0.49704205]
[1726368536345,0.02724156,60355.0,60354.0,0.34791823]
[1726368536567,0.02724156,60355.0,60354.0,0.40938687]
[1726368536992,0.02724156,60355.0,60354.0,0.34791823]
[1726368537262,0.02724156,60355.0,60354.0,0.40938816]
[1726368537476,0.02724156,60355.0,60354.0,0.34791823]
[1726368538305,0.02724156,60355.0,60354.0,0.28764077]
[1726368538519,0.02724156,60355.0,60354.0,0.40932861]
[1726368539762,0.02724156,60355.0,60354.0,1.11143261]
[1726368539986,0.00124644,60355.0,60354.0,1.11143261]
[1726368540209,0.00124644,60355.0,60354.0,1.11243261]
[1726368540693,0.00124644,60355.0,60354.0,0.75213061]
[1726368540915,0.00124644,60355.0,60354.0,0.75113061]
[1726368542301,0.00124644,60355.0,60354.0,0.75213061]
[1726368543238,0.00124644,60355.0,60354.0,0.75113061]
[1726368544130,0.00124644,60355.0,60354.0,0.71507367]
[1726368544585,0.00124644,60355.0,60354.0,0.71407367]
[1726368545060,0.00124644,60355.0,60354.0,0.71507367]
[1726368545276,0.00124644,60355.0,60354.0,0.75211021]
[1726368545526,0.00124644,60355.0,60354.0,0.77285901]
[1726368545954,0.00124644,60355.0,60354.0,0.69191308]
[1726368547506,0.00124644,60355.0,60354.0,0.72896216]
[1726368547946,0.00124644,60355.0,60354.0,1.01721983]
[1726368548144,0.00124644,60355.0,60354.0,0.95701508]
[1726368548560,0.00124644,60355.0,60354.0,1.01720614]
[1726368549573,0.00124644,60355.0,60354.0,0.95701508]
[1726368553160,0.00124644,60355.0,60354.0,1.29223537]
[1726368555013,0.00124644,60355.0,60354.0,1.29123537]
[1726368555428,0.00124644,60355.0,60354.0,1.35138817]
[1726368556063,0.00124644,60355.0,60354.0,1.35238817]
[1726368557155,0.00124644,60355.0,60354.0,1.35138817]
[1726368557809,0.00124644,60355.0,60354.0,1.32828704]
[1726368558027,0.00124644,60355.0,60354.0,1.388496]
[1726368558674,0.00124644,60355.0,60354.0,1.60877844]
[1726368560469,0.00124644,60355.0,60354.0,1.57172677]
[1726368561391,0.00124644,60355.0,60354.0,1.57216484]
[1726368568829,0.00124644,60355.0,60354.0,1.29150255]
[1726368569064,0.00124644,60355.0,60354.0,1.35168262]
[1726368569269,0.00124644,60355.0,60354.0,1.57213119]
[1726368569933,0.00124644,60355.0,60354.0,1.49543119]
[1726368570140,0.10104644,60355.0,60354.0,1.49543119]
[1726368571884,0.10104644,60355.0,60354.0,1.27498262]
[1726368572957,0.10104644,60355.0,60354.0,1.27504138]
[1726368573622,0.10104644,60355.0,60354.0,1.49549667]
[1726368573833,0.10104644,60355.0,60354.0,1.49549871]
[1726368574047,0.10104644,60355.0,60354.0,1.27504138]
[1726368574290,0.10104644,60355.0,60354.0,1.49549624]
[1726368576243,0.10104644,60355.0,60354.0,1.49546523]
[1726368578389,0.10104644,60355.0,60354.0,1.27501037]
[1726368578597,0.10104644,60355.0,60354.0,1.49546523]
[1726368579724,0.10104644,60355.0,60354.0,1.43525741]
[1726368579943,0.10104644,60355.0,60354.0,1.49546875]
[1726368580380,0.10104644,60355.0,60354.0,1.49646875]
[1726368581019,0.10104644,60355.0,60354.0,1.49575586]
[1726368582462,0.10104644,60355.0,60354.0,1.49675586]
[1726368583019,0.10104644,60355.0,60354.0,1.49575586]
[1726368583854,0.10104644,60355.0,60354.0,1.45871317]
[1726368584083,0.10104644,60355.0,60354.0,1.49578302]
[1726368587056,0.10104644,60355.0,60354.0,1.49583244]
[1726368590577,0.10104644,60355.0,60354.0,1.43561494]
[1726368590790,0.10104644,60355.0,60354.0,1.49588966]
[1726368592900,0.10104644,60355.0,60354.0,1.49688966]
[1726368593778,0.10104644,60355.0,60354.0,1.49687995]
[1726368594217,0.10104644,60355.0,60354.0,1.47368861]
[1726368594430,0.10104644,60355.0,60354.0,1.49686572]
[1726368594636,0.10104644,60355.0,60354.0,1.43660523]
[1726368594857,0.10104644,60355.0,60354.0,1.45977835]
[1726368595085,0.10104644,60355.0,60354.0,1.49685535]
[1726368596607,0.10104644,60355.0,60354.0,1.49585535]
[1726368600943,0.10104644,60355.0,60354.0,1.43560523]
[1726368601150,0.10104644,60355.0,60354.0,1.49583844]
[1726368601395,0.00124644,60355.0,60354.0,1.49683844]
[1726368603775,0.00124644,60355.0,60354.0,1.49689653]
[1726368604504,0.00124644,60355.0,60354.0,1.43666332]
[1726368604734,0.00124644,60355.0,60354.0,1.49689934]
[1726368605176,0.00124644,60355.0,60354.0,1.49689635]
[1726368605656,0.00124644,60355.0,60354.0,1.16108668]
[1726368606092,0.00124644,60355.0,60354.0,0.94054811]
[1726368606554,0.00124644,60355.0,60354.0,1.49589431]
[1726368607216,0.00124644,60355.0,60354.0,1.43666128]
[1726368607425,0.00124644,60355.0,60354.0,1.49689402]
[1726368607910,0.00124644,60355.0,60354.0,1.43666128]
[1726368608136,0.00124644,60355.0,60354.0,1.49689373]
[1726368608348,0.00124644,60355.0,60354.0,0.94054753]
[1726368610089,0.00124644,60355.0,60354.0,1.64054753]
[1726368611168,0.00124644,60355.0,60354.0,1.66129587]
[1726368611377,0.00124644,60355.0,60354.0,1.60106342]
[1726368611619,0.00124644,60355.0,60354.0,1.66127626]
[1726368612251,0.00124644,60355.0,60354.0,1.74437626]
[1726368613586,0.00124644,60355.0,60354.0,2.10457826]
[1726368614409,0.00124644,60355.0,60354.0,2.09057826]
[1726368614831,0.00124644,60355.0,60354.0,2.35568026]
[1726368615037,0.00124644,60355.0,60354.0,2.08362839]
[1726368615248,0.00124644,60355.0,60354.0,2.10437342]
[1726368615632,0.00124644,60355.0,60354.0,2.09037342]
[1726368616268,0.00124644,60355.0,60354.0,2.10437342]
[1726368616468,0.00124644,60355.0,60354.0,2.09037342]
[1726368616690,0.00124644,60355.0,60354.0,2.07637342]
[1726368616903,0.00124644,60355.0,60354.0,2.09037342]
[1726368617126,0.00124644,60355.0,60354.0,2.10437342]
[1726368618622,0.00124644,60355.0,60354.0,2.10442949]
[1726368621955,0.00124644,60355.0,60354.0,2.10444242]
[1726368623917,0.00124644,60355.0,60354.0,2.4383184]
[1726368625450,0.00124644,60355.0,60354.0,2.41521665]
[1726368625664,0.00124644,60355.0,60354.0,2.43832772]
[1726368629013,0.00124644,60355.0,60354.0,2.4383408]
[1726368632395,0.00124644,60355.0,60354.0,2.37823894]
[1726368632630,0.00124644,60355.0,60354.0,2.43831234]
[1726368636139,0.00124644,60355.0,60354.0,2.37823856]
[1726368636392,0.00124644,60355.0,60354.0,2.43833878]
[1726368636615,0.00124644,60355.0,60354.0,2.47532353]
[1726368636818,0.00124644,60355.0,60354.0,2.43833878]
[1726368639678,0.00124644,60355.0,60354.0,2.34323878]
[1726368639948,0.00124644,60355.0,60354.0,2.32254066]
[1726368640154,0.00124644,60355.0,60354.0,2.34328692]
[1726368640328,0.00124644,60355.0,60354.0,2.00941094]
[1726368640534,0.00124644,60355.0,60354.0,2.3432874]
[1726368641393,0.00124644,60355.0,60354.0,1.6432874]
[1726368643320,0.00124644,60355.0,60354.0,2.3433168]
[1726368645048,0.00124644,60355.0,60354.0,2.34353733]
[1726368646980,0.00124644,60355.0,60354.0,1.56261407]
[1726368647200,0.00124644,60355.0,60354.0,1.6227839]
[1726368647425,0.00124644,60355.0,60354.0,1.56261407]
[1726368647682,0.00124644,60355.0,60354.0,1.6227845]
[1726368647890,0.00124644,60355.0,60354.0,1.66427753]
[1726368650067,0.00124644,60355.0,60354.0,2.3644406]
[1726368651165,0.00124644,60355.0,60354.0,2.3436941]
[1726368652318,0.00124644,60355.0,60354.0,1.6436941]
[1726368654320,0.00124644,60355.0,60354.0,1.6436942]
[1726368654753,0.00124644,60355.0,60354.0,1.64378734]
[1726368655388,0.00124644,60355.0,60354.0,2.34378734]
[1726368656476,0.00124644,60355.0,60354.0,2.37955437]
[1726368656477,0.09324644,60355.0,60354.0,2.37955437]
[1726368658516,0.09324644,60355.0,60354.0,2.35880784]
[1726368658756,0.09324644,60355.0,60354.0,2.37955482]
[1726368662754,0.09324644,60355.0,60354.0,2.37964133]
[1726368663096,0.09324644,60355.0,60354.0,1.6194708]
[1726368663303,0.09324644,60355.0,60354.0,1.63564029]
[1726368663525,0.09324644,60355.0,60354.0,1.67946008]
[1726368663730,0.09324644,60355.0,60354.0,1.67947187]
[1726368664176,0.09324644,60355.0,60354.0,1.59873561]
[1726368664393,0.09324644,60355.0,60354.0,1.65871829]
[1726368664610,0.09324644,60355.0,60354.0,1.67946527]
[1726368666182,0.09324644,60355.0,60354.0,2.37946527]
[1726368667713,0.09324644,60355.0,60354.0,2.37947861]
[1726368668157,0.09324644,60355.0,60354.0,2.35640697]
[1726368668376,0.09324644,60355.0,60354.0,2.35873773]
[1726368668822,0.09324644,60355.0,60354.0,2.11438283]
[1726368670326,0.09324644,60355.0,60354.0,1.44030737]
[1726368670999,0.09324644,60355.0,60354.0,1.41438283]
[1726368671417,0.09324644,60355.0,60354.0,1.41442365]
[1726368674709,0.09324644,60355.0,60354.0,1.38030547]
[1726368674932,0.09324644,60355.0,60354.0,1.39182206]
[1726368675165,0.09324644,60355.0,60354.0,1.44114749]
[1726368675381,0.09324644,60355.0,60354.0,1.4152229]
[1726368676031,0.09324644,60355.0,60354.0,1.4620172]
[1726368677109,0.09324644,60355.0,60354.0,1.4610172]
[1726368678276,0.09324644,60355.0,60354.0,1.46102569]
[1726368678508,0.09324644,60355.0,60354.0,1.46202569]
[1726368678732,0.09324644,60355.0,60354.0,1.41422495]
[1726368678950,0.09324644,60355.0,60354.0,1.4817759]
[1726368679396,0.09324644,60355.0,60354.0,1.4610288]
[1726368680781,0.09324644,60355.0,60354.0,1.48795349]
[1726368680997,0.09324644,60355.0,60354.0,1.4620288]
[1726368681708,0.09324644,60355.0,60354.0,1.3543813]
[1726368681930,0.09324644,60355.0,60354.0,1.461914]
[1726368682158,0.09324644,60355.0,60354.0,1.46191446]
[1726368686618,0.09324644,60355.0,60354.0,1.46220056]
[1726368686868,0.09324644,60355.0,60354.0,1.46120056]
[1726368687556,0.09324644,60355.0,60354.0,1.46220056]
[1726368688711,0.09324644,60355.0,60354.0,1.33391971]
[1726368688964,0.09324644,60355.0,60354.0,1.46091501]
[1726368689185,0.09324644,60355.0,60354.0,1.35366776]
[1726368689387,0.09324644,60355.0,60354.0,1.4618895]
[1726368689846,0.09324644,60355.0,60354.0,1.4608895]
[1726368690101,0.09324644,60355.0,60354.0,1.4618895]
[1726368691028,0.09324644,60355.0,60354.0,1.4608895]
[1726368691725,0.09324644,60355.0,60354.0,1.68126019]
[1726368692157,0.09324644,60355.0,60354.0,1.57579056]
[1726368692397,0.09324644,60355.0,60354.0,1.68306966]
[1726368693152,0.09324644,60355.0,60354.0,1.41796766]
[1726368693375,0.09324644,60355.0,60354.0,1.63642657]
[1726368693599,0.09324644,60355.0,60354.0,1.41605588]
[1726368695790,0.09324644,60355.0,60354.0,1.39530783]
[1726368695994,0.09324644,60355.0,60354.0,1.41605656]
[1726368696214,0.09324644,60355.0,60354.0,1.41631694]
[1726368698497,0.09324644,60355.0,60354.0,1.41731694]
[1726368698716,0.09324644,60355.0,60354.0,1.41631694]
[1726368699185,0.09324644,60355.0,60354.0,1.39556821]
[1726368699428,0.09324644,60355.0,60354.0,1.61592876]
[1726368699631,0.09324644,60355.0,60354.0,1.61339208]
[1726368699848,0.09324644,60355.0,60354.0,1.41737583]
[1726368700069,0.09324644,60355.0,60354.0,1.41637583]
[1726368700922,0.09324644,60355.0,60354.0,1.41636899]
[1726368701126,0.09324644,60355.0,60354.0,1.63672502]
[1726368701557,0.09324644,60355.0,60354.0,1.61597657]
[1726368702639,0.09324644,60355.0,60354.0,1.61596503]
[1726368703096,0.09324644,60355.0,60354.0,1.396609]
[1726368703097,0.00124644,60355.0,60354.0,1.396609]
[1726368703316,0.00124644,60355.0,60354.0,1.478409]
[1726368705723,0.00124644,60355.0,60354.0,1.69876644]
[1726368708851,0.09744644,60355.0,60354.0,1.69876644]
[1726368709088,0.09744644,60355.0,60354.0,1.61696644]
[1726368709740,0.09744644,60355.0,60354.0,1.67776594]
[1726368710196,0.09744644,60355.0,60354.0,1.67770658]
[1726368710432,0.09744644,60355.0,60354.0,1.6776174]
[1726368711532,0.09744644,60355.0,60354.0,1.61687583]
[1726368713132,0.09744644,60355.0,60354.0,1.61688093]
[1726368714350,0.09744644,60355.0,60354.0,1.39650577]
[1726368716525,0.09744644,60355.0,60354.0,1.39650862]
[1726368716977,0.09744644,60355.0,60354.0,1.39550862]
[1726368717149,0.09744644,60355.0,60354.0,1.39650862]
[1726368717348,0.09744644,60355.0,60354.0,1.61691409]
[1726368717671,0.09744644,60355.0,60354.0,1.39650862]
[1726368717885,0.09744644,60355.0,60354.0,1.61691672]
[1726368718073,0.07265454,60355.0,60354.0,1.39650862]
[1726368718285,0.06026834,60355.0,60354.0,1.39650862]
[1726368720412,0.06026834,60355.0,60354.0,1.39649388]
[1726368722174,0.06026834,60355.0,60354.0,1.66159588]
[1726368722429,0.06026834,60355.0,60354.0,1.39647659]
[1726368722906,0.02,60368.0,60367.0,0.181522]
[1726368723145,0.02,60368.0,60367.0,0.32371908]
[1726368723380,0.117,60368.0,60367.0,0.32371908]
[1726368723609,0.117,60368.0,60367.0,0.34259322]
[1726368724295,0.117,60368.0,60367.0,0.60763822]
[1726368724751,0.117,60368.0,60367.0,0.62163822]
[1726368725426,0.117,60368.0,60367.0,0.63563822]
[1726368728174,0.118646,60368.0,60367.0,0.63563822]
[1726368730474,0.118646,60368.0,60367.0,0.51677119]
[1726368730888,0.118646,60368.0,60367.0,0.64109021]
[1726368731116,0.118646,60368.0,60367.0,0.51677119]
[1726368731357,0.1446368,60368.0,60367.0,0.51677119]
[1726368731738,0.1446368,60368.0,60367.0,0.37604111]
[1726368731939,0.1446368,60368.0,60367.0,0.25172619]
[1726368732802,0.1446368,60368.0,60367.0,0.2517585]
[1726368733049,0.118646,60368.0,60367.0,0.3760715]
[1726368733247,0.118646,60368.0,60367.0,0.2517585]
[1726368733708,0.118646,60368.0,60367.0,0.37606657]
[1726368736367,0.1446368,60368.0,60367.0,0.37606657]
[1726368736575,0.118646,60368.0,60367.0,0.37606657]
[1726368737677,0.118646,60368.0,60367.0,0.37605681]
[1726368739660,0.118646,60368.0,60367.0,0.35269445]
[1726368739879,0.118646,60368.0,60367.0,0.37606268]
[1726368740114,0.118646,60368.0,60367.0,0.35269445]
[1726368740320,0.118646,60368.0,60367.0,0.37605382]
[1726368743021,0.118646,60368.0,60367.0,0.35269445]
[1726368743220,0.118646,60368.0,60367.0,0.37606613]
[1726368743381,0.021646,60368.0,60367.0,0.64111113]
[1726368743586,0.021646,60368.0,60367.0,0.37063485]
[1726368744467,0.021646,60368.0,60367.0,0.4949385]
[1726368745904,0.021646,60368.0,60367.0,0.7599835]
[1726368746116,0.021646,60368.0,60367.0,0.63567985]
[1726368746519,0.021646,60368.0,60367.0,0.37063485]
[1726368748017,0.021646,60368.0,60367.0,0.63567985]
[1726368749855,0.021646,60368.0,60367.0,0.61230817]
[1726368750028,0.021646,60368.0,60367.0,0.63566473]
[1726368750226,0.0476368,60368.0,60367.0,0.65902105]
[1726368750445,0.0476368,60368.0,60367.0,0.65902111]
[1726368751328,0.021646,60368.0,60367.0,0.65902111]
[1726368751735,0.021646,60368.0,60367.0,0.63566455]
[1726368756896,0.021646,60368.0,60367.0,0.61230817]
[1726368757090,0.021646,60368.0,60367.0,0.63564894]
[1726368759220,0.021646,60368.0,60367.0,0.51678191]
[1726368759464,0.119846,60368.0,60367.0,0.51678191]
[1726368760372,0.14583674,60368.0,60367.0,0.51678191]
[1726368760615,0.14583674,60368.0,60367.0,0.49344114]
[1726368760881,0.14583674,60368.0,60367.0,0.90060025]
[1726368761089,0.14583674,60368.0,60367.0,1.01805317]
[1726368761090,0.04763674,60368.0,60367.0,1.01805317]
[1726368761318,0.04763674,60368.0,60367.0,1.1019564]
[1726368761535,0.04763674,60368.0,60367.0,1.51615843]
[1726368763340,0.021646,60368.0,60367.0,1.3670014]
[1726368763983,0.021646,60368.0,60367.0,1.51614079]
[1726368764206,0.021646,60368.0,60367.0,1.34354508]
[1726368764418,0.021646,60368.0,60367.0,1.36724004]
[1726368764867,0.021646,60368.0,60367.0,1.36824004]
[1726368765853,0.021646,60368.0,60367.0,1.10219504]
[1726368766266,0.021646,60368.0,60367.0,1.18987425]
[1726368766468,0.021646,60368.0,60367.0,1.10218245]
[1726368767113,0.021646,60368.0,60367.0,1.18986741]
[1726368767324,0.021646,60368.0,60367.0,1.00848199]
[1726368767325,0.119546,60368.0,60367.0,1.00848199]
[1726368767548,0.119546,60368.0,60367.0,1.02248199]
[1726368767751,0.119546,60368.0,60367.0,0.94704813]
[1726368767995,0.119546,60368.0,60367.0,0.93307095]
[1726368768210,0.119546,60368.0,60367.0,0.94707095]
[1726368768669,0.119546,60368.0,60367.0,0.96107095]
[1726368768907,0.119546,60368.0,60367.0,0.68202595]
[1726368769354,0.119546,60368.0,60367.0,0.69602595]
[1726368769827,0.119546,60368.0,60367.0,0.68202595]
[1726368770303,0.119546,60368.0,60367.0,0.69602595]
[1726368770741,0.119546,60368.0,60367.0,0.68202595]
[1726368770945,0.119546,60368.0,60367.0,0.69602595]
[1726368771614,0.119546,60368.0,60367.0,0.67230817]
[1726368771809,0.119546,60368.0,60367.0,0.69605318]
[1726368772066,0.119546,60368.0,60367.0,0.67230817]
[1726368772285,0.119546,60368.0,60367.0,0.69605318]
[1726368778517,0.119546,60368.0,60367.0,0.67230817]
[1726368778748,0.119546,60368.0,60367.0,0.69606373]
[1726368779990,0.021646,60368.0,60367.0,0.69606373]
[1726368780821,0.01235308,60368.0,60367.0,0.69606373]
[1726368781239,0.01235308,60368.0,60367.0,0.77456373]
[1726368781457,0.01235308,60368.0,60367.0,1.03960873]
[1726368781677,0.01235308,60368.0,60367.0,1.19523301]
[1726368783204,0.01235308,60368.0,60367.0,1.89523301]
[1726368783851,0.01235308,60368.0,60367.0,1.88123301]
[1726368784310,0.01235308,60368.0,60367.0,1.89523301]
[1726368784985,0.01235308,60368.0,60367.0,1.88123301]
[1726368785211,0.01235308,60368.0,60367.0,1.89523301]
[1726368785419,0.01235308,60368.0,60367.0,1.88123301]